Cogmind - Beta 16 @@@ ROGUE MODE // 2025.11.21 @ 17:34:15 // Winter2022/Polymind Player: Minty Result: Destroyed by Y-45 Defender with Beam Rifle Performance ------------- Evolutions (2) 1000 Regions Visited (4) 800 Robots Destroyed (19) 95 Value Destroyed (511) 511 Prototype IDs (2) 40 Alien Tech Used (0) 0 Bonus (2325) 2325 TOTAL SCORE: 4491 Bonus ------- Polymind Skill 2125 Entered Garrisons 200 Cogmind --------- Core Integrity 0/550 Matter 0/0 Energy 17/100 System Corruption 0% Temperature Cool (27) Movement Core (50) Location -8/Garrison Parts ------- > --- POWER (1) -------- (None) > --- PROPULSION (2) --- (None) > --- UTILITY (0) ------ (None) > --- WEAPON (1) ------- (None) > --- INVENTORY (0) ---- (None) Peak State ------------ > --- POWER ------------ Light Nuclear Core > --- PROPULSION ------- Surge Thruster Surge Thruster Surge Thruster > --- UTILITY ---------- Reaction Control System > --- WEAPON ----------- Concussive RPG Blade Saw > --- INVENTORY -------- (None) [Rating: 21] Favorites ----------- Power Light Ion Engine Engine Light Ion Engine Power Core Light Nuclear Core Propulsion Aluminum Leg Treads Light Treads Leg Aluminum Leg Wheel Wheel Hover Unit Hover Unit Flight Unit Surge Thruster Utility Heat Sink Device Heat Sink Hackware Hacking Suite Protection Light Armor Plating Weapon Small Laser Energy Gun Small Laser Ballistic Gun Light Assault Rifle Launcher Concussive RPG Special Weapon Mining Laser Slashing Weapon Blade Saw Special Melee Weapon Datajack Build | -11 -10 -9 -8 -8 ------- Run | Yrd Mat Mat Mat Gar Slots Evolved . | . . . . . Power . | . . . . . Propulsion . | . . . . . Utility . | . . . . . Weapon . | . . . . . Parts Attached . | . . . . . Power . | . . . . . Engine . | . . . . . Core . | . . . . . Reactor . | . . . . . Propulsion . | . . . . . Treads . | . . . . . Leg . | . . . . . Wheel . | . . . . . Hover . | . . . . . Flight . | . . . . . Utility . | . . . . . Device . | . . . . . Storage . | . . . . . Processor . | . . . . . Hackware . | . . . . . Protection . | . . . . . Artifact . | . . . . . Weapon . | . . . . . Energy Gun . | . . . . . Energy Cannon . | . . . . . Ballistic Gun . | . . . . . Ballistic Cannon . | . . . . . Launcher . | . . . . . Special Weapon . | . . . . . Impact Weapon . | . . . . . Slashing Weapon . | . . . . . Piercing Weapon . | . . . . . Special Melee Weapon . | . . . . . Unidentified Prototypes . | . . . . . Parts Lost 23 | . 4 8 1 10 Power 4 | . 1 1 . 2 Propulsion 11 | . 2 3 1 5 Utility 2 | . . 1 . 1 Weapon 6 | . 1 3 . 2 Highest Loss Streak 6 | . 3 6 1 6 To Critical Strikes . | . . . . . Average Backups . | . . . . . Power . | . . . . . Propulsion . | . . . . . Utility . | . . . . . Weapon . | . . . . . Tool/Special . | . . . . . Unused Backups . | . . . . . Power . | . . . . . Propulsion . | . . . . . Utility . | . . . . . Weapon . | . . . . . Tool/Special . | . . . . . Average Slot Usage (%) 87 | . 94 86 96 72 Engine 15 | . 18 15 15 7 Core 1 | . . . 3 7 Treads 1 | . . 5 . . Leg 12 | . 29 . . . Wheel 2 | . 5 . . . Hover 8 | . . 23 25 . Flight 10 | . 1 1 16 35 Device 12 | . 20 8 3 3 Hackware 4 | . . 11 12 . Energy Gun 7 | . 15 3 . . Ballistic Gun 3 | . . 3 3 11 Special Weapon 1 | . 2 . . . Slashing Weapon 1 | . . . 3 7 Special Melee Weapon 4 | . . 10 12 . Peak Build Rating 21 | 8 8 11 21 18 Average Rating 7 | 7 5 7 9 9 On Entrance 7 | . 8 4 7 18 Avg Prop Armor Cover (%) 12 | . . 12 . . Naked Turns 24 | . 20 1 . 3 Heaviest Build 18 | 6 7 18 9 8 Greatest Support 40 | 20 20 40 12 12 Greatest Overweight (x) 3 | . . 3 . . Average Overweight (x) . | . . . . . Largest Inventory Capacity 1 | . 1 1 1 . Average Capacity . | . . . . . Most Carried . | . . . . . Average Carried . | . . . . . Final Capacity 1 | . . 1 . . Final Carried . | . . . . . Class Distribution -------------------- 34% | Grunt 20% | Operator 12% | Cutter 12% | Swarmer 10% | Sentry 7% | Tunneler Dominant Class ---------------- Grunt | -10/Materials Operator | -9/Materials Operator | -8/Materials Cutter | -8/Garrison Resources | -11 -10 -9 -8 -8 ----------- Run | Yrd Mat Mat Mat Gar Matter Collected 61 | . 18 30 . 13 Remotely . | . . . . . Salvage Created 307 | . 64 118 26 99 Parts 41 | . 8 15 . 18 Haulers Intercepted . | . . . . . Recyclers Shooed . | . . . . . Parts Field Recycled . | . . . . . Retrieved Matter . | . . . . . Parts Self-Destructed . | . . . . . Prevented . | . . . . . Parts Restored . | . . . . . Kills | -11 -10 -9 -8 -8 ------- Run | Yrd Mat Mat Mat Gar Combat Hostiles Destroyed 17 | . 3 6 1 7 Melee 3 | . . . . 3 Guns 13 | . 3 6 . 4 AOE 1 | . . . 1 . Classes Destroyed 5 | . 3 2 . . Tunneler 1 | . 1 . . . Operator 1 | . . 1 . . Swarmer 13 | . 1 4 1 7 Grunt 2 | . 2 . . . Sentry 2 | . . 2 . . Best Kill Streak 5 | . 2 5 1 4 Combat Bots Only 5 | . 2 5 1 4 Max Kills in Single Turn 1 | . 1 1 1 1 Gunslinging . | . . . . . Exploded 1 | . . . 1 . Melee 1 | . . . . 1 Uniques/NPCs Destroyed . | . . . . . Combat | -11 -10 -9 -8 -8 -------- Run | Yrd Mat Mat Mat Gar Hostile Shots Fired 419 | . 83 127 31 178 Missed 157 | . 21 34 17 85 Hits 262 | . 62 93 14 93 Projectile 262 | . 62 93 14 93 AOE 1 | . . . 1 . Critical Strikes 6 | . . 4 . 2 Damage Taken 2911 | . 610 1126 176 999 Core 1086 | . 223 310 59 494 Absorbed by Shields 54 | . . . . 54 Ignored by Resistances 11 | . . 11 . . Core Remaining (%) 44 | 100 10 22 . . Volleys Fired 74 | . 26 17 1 30 Largest 2 | . 1 2 1 1 Hottest 100 | . 100 79 . 20 Shots Fired 87 | . 26 30 1 30 Gun 85 | . 25 30 . 30 Cannon . | . . . . . Launcher 1 | . . . 1 . Special 1 | . 1 . . . Kinetic 43 | . . 13 . 30 Thermal 43 | . 26 17 . . Explosive 1 | . . . 1 . Electromagnetic . | . . . . . Robot Hit Streak 7 | . 5 7 5 6 Robot Miss Streak 3 | . 3 3 . 2 Penetration Max . | . . . . . Secondary Targets 2 | . . 2 . . Max Gunslinging Chain 1 | . . 1 . . Shots Hit Robots 63 | . 15 23 1 24 Core Hits 34 | . 7 9 4 14 Critical Kills . | . . . . . Critical Parts Destroyed . | . . . . . Critical Strikes 2 | . . 1 . 1 Burn 1 | . . 1 . . Sever 1 | . . . . 1 Melee Attacks 7 | . . 1 . 6 Impact . | . . . . . Slashing 6 | . . . . 6 Piercing . | . . . . . Sneak Attacks 2 | . . 1 . 1 Combat Hostiles 2 | . . 1 . 1 Follow-up Attacks . | . . . . . Damage Inflicted 1023 | . 217 381 147 278 Guns 731 | . 189 374 . 168 Cannons 12 | . . . 12 . Explosions 135 | . . . 135 . Melee 99 | . . . . 99 Ramming 22 | . 4 7 . 11 Kinetic 293 | . . 125 . 168 Thermal 462 | . 213 249 . . Explosive 135 | . . . 135 . Electromagnetic . | . . . . . Impact 12 | . . . 12 . Slashing 99 | . . . . 99 Piercing . | . . . . . Highest Corruption . | . . . . . Average Corruption . | . . . . . Corruption Purged . | . . . . . Corruption Blocked . | . . . . . Overload Shots . | . . . . . Overflow Damage . | . . . . . Projectiles . | . . . . . Explosions . | . . . . . Melee . | . . . . . Knockbacks . | . . . . . Impact . | . . . . . Kinetic . | . . . . . Secondary . | . . . . . Self-Inflicted Damage 30 | . . 2 24 4 Shots 1 | . . . 1 . Rammed 8 | . . 4 . 4 Targets Rammed 12 | . 4 4 . 4 Kicked 4 | . 4 . . . Crushed . | . . . . . Highest Temperature 90 | . 90 26 1 53 Average Temperature 26 | . 49 7 1 22 Received Heat Transfer 858 | . 201 324 27 306 Siege Activations . | . . . . . Martial Activations . | . . . . . Shielding Activations . | . . . . . Robots Disrupted . | . . . . . Combat Hostiles . | . . . . . Robots Corrupted . | . . . . . Combat Hostiles . | . . . . . Parts Fried . | . . . . . Impact Corruptions . | . . . . . Robots Melted . | . . . . . Combat Hostiles . | . . . . . Parts Melted 5 | . 2 3 . . Heat Transferred 1116 | . 450 666 . . Parts Sabotaged . | . . . . . Parts Stolen . | . . . . . Parts Stripped . | . . . . . Power Chain Reactions . | . . . . . Alert | -11 -10 -9 -8 -8 ------- Run | Yrd Mat Mat Mat Gar Maximum Alert Level 1 | . . . . 1 Low Security (%) 90 | 100 100 100 100 47 Level 1 9 | . . . . 52 Level 2 . | . . . . . Level 3 . | . . . . . Level 4 . | . . . . . Level 5 . | . . . . . High Security . | . . . . . Max Security . | . . . . . Peak Influence 336 | . 40 85 125 336 Initial 81 | . . . 18 81 Average 47 | . 5 17 50 218 Influence Increases 788 | . 91 170 147 380 Destroy 0b10 Robot/C 340 | . 60 120 20 140 Destroy 0b10 Robot/NC 10 | . 5 5 . . Destroy Leader 60 | . 10 30 10 10 Successful Hack 52 | . 16 15 21 . Select Force Hacks 30 | . . . 30 . Anti-Garrison Action 50 | . . . . 50 Destroy Structure 6 | . . . 6 . Lose Combat Pursuer 240 | . . . 60 180 Influence Decreases 427 | . 91 125 67 144 Entered New Map 71 | . . . 27 44 Time Decay 176 | . 81 65 30 . Lost Part 180 | . 10 60 10 100 Squads Dispatched 9 | . 3 3 3 . Investigation 4 | . 2 1 1 . Extermination . | . . . . . Reinforcement 5 | . 1 2 2 . Assault . | . . . . . Garrison . | . . . . . Intercept . | . . . . . Searches Triggered . | . . . . . Construction Impeded . | . . . . . Haulers Reinforced . | . . . . . Active Scanning Responses . | . . . . . Cargo Convoy Interrupts . | . . . . . Stealth | -11 -10 -9 -8 -8 --------- Run | Yrd Mat Mat Mat Gar Distress Signals 5 | . . 4 1 . Communications Jammed . | . . . . . Distress Signals . | . . . . . Times Spotted 130 | . 16 29 38 47 Peak Tracking Total 22 | . 7 12 22 13 Tactical Retreats 5 | . . . 1 4 Traps | -11 -10 -9 -8 -8 ------- Run | Yrd Mat Mat Mat Gar Traps Triggered 4 | . . 1 . 3 Indirectly . | . . . . . Trap Hack Attempts 19 | . . 19 . . Triggered . | . . . . . Disarmed 4 | . . 4 . . Reprogrammed . | . . . . . Reused . | . . . . . Traps Extracted . | . . . . . Installed . | . . . . . Triggered . | . . . . . Machines | -11 -10 -9 -8 -8 ---------- Run | Yrd Mat Mat Mat Gar Machines Disabled 1 | . . . . 1 Max in Single Turn 1 | . . . . 1 Garrison Relay 1 | . . . . 1 Machines Repaired . | . . . . . Machines Dismantled . | . . . . . Machines Sabotaged . | . . . . . Overloaded Fab Kills . | . . . . . Hacking | -11 -10 -9 -8 -8 --------- Run | Yrd Mat Mat Mat Gar Machines Accessed 13 | . 3 5 5 . Terminals 11 | . 3 5 3 . Fabricators . | . . . . . Repair Stations . | . . . . . Recycling Units 1 | . . . 1 . Scanalyzers . | . . . . . Garrison Access 1 | . . . 1 . Total Hacks 53 | . 17 23 13 . Successful 26 | . 5 16 5 . Failed 27 | . 12 7 8 . Catastrophic 1 | . 1 . . . Database Lockouts . | . . . . . Manual 45 | . 10 25 10 . Terminals 50 | . 17 23 10 . Fabricators . | . . . . . Repair Stations . | . . . . . Recycling Units 2 | . . . 2 . Scanalyzers . | . . . . . Garrison Access 1 | . . . 1 . Terminal Hacks 13 | . 4 8 1 . Robot Analysis 3 | . 1 2 . . Prototype ID Bank 1 | . . 1 . . Branch Access Points 2 | . . 1 1 . Emergency Access Points 1 | . . 1 . . Terminal Index 1 | . . 1 . . Locate Traps 2 | . 2 . . . Transport Status 1 | . . 1 . . Hauler Manifests 1 | . 1 . . . Zone Layout 1 | . . 1 . . Fabricator Hacks . | . . . . . Repair Station Hacks . | . . . . . Recycling Unit Hacks 1 | . . . 1 . Report Inventory 1 | . . . 1 . Scanalyzer . | . . . . . Garrison Access Hacks 1 | . . . 1 . Unlock Access 1 | . . . 1 . Unauthorized Hacks 11 | . 1 8 2 . Terminals 10 | . 1 8 1 . Botnet 4 | . 1 3 . . Disrupt 2 | . . 1 1 . Skim 4 | . . 4 . . Fabricators . | . . . . . Repair Stations . | . . . . . Recycling Units 1 | . . . 1 . Tunnel 1 | . . . 1 . Scanalyzers . | . . . . . Garrison Access . | . . . . . Data Cores Recovered . | . . . . . Used . | . . . . . Hacking Detections 12 | . 3 5 4 . Full Trace Events 4 | . 3 1 . . Feedback Events . | . . . . . Feedback Blocked . | . . . . . Robot Schematics Acquired . | . . . . . Robots Built . | . . . . . Authchips . | . . . . . Time . | . . . . . Total Robot Build Rating . | . . . . . Part Schematics Acquired . | . . . . . Parts Built . | . . . . . Authchips . | . . . . . Time . | . . . . . Total Part Build Rating . | . . . . . Part Studies Acquired . | . . . . . Parts Repaired . | . . . . . Time . | . . . . . Parts Recycled . | . . . . . Recycled Matter . | . . . . . Retrieved Matter . | . . . . . Retrieved Components . | . . . . . Parts Scanalyzed . | . . . . . Part Schematics Acquired . | . . . . . Parts Damaged . | . . . . . Bothacking | -11 -10 -9 -8 -8 ------------ Run | Yrd Mat Mat Mat Gar Used RIF Installer . | . . . . . Robots Hacked 10 | . 2 4 2 2 Non-combat 2 | . . 2 . . Combat 8 | . 2 2 2 2 Robot Hacks Applied 12 | . 2 4 4 2 parse_system 1 | . . 1 . . find_terminals 2 | . . 2 . . find_shortcuts 7 | . 2 1 2 2 find_garrison 2 | . . . 2 . Relay Couplers Released 3 | . . . . 3 Machine Destruction 3 | . . . . 3 Fabnet Peak Effective % . | . . . . . Robots Rewired . | . . . . . Allies Hacked . | . . . . . Hacks Repelled . | . . . . . Allies | -11 -10 -9 -8 -8 -------- Run | Yrd Mat Mat Mat Gar Total Allies . | . . . . . Largest Group . | . . . . . Highest-Rated Group . | . . . . . Highest-Rated Ally . | . . . . . Total Orders . | . . . . . Ally Attacks . | . . . . . Total Damage . | . . . . . Kills . | . . . . . Allies Corrupted . | . . . . . Allies Melted . | . . . . . Intel | -11 -10 -9 -8 -8 ------- Run | Yrd Mat Mat Mat Gar Active Infowar (turns) 219 | 155 64 . . . Terrain 219 | 155 64 . . . Seismic 219 | 155 64 . . . Robot Analysis Total 7 | 1 2 3 1 . Derelict Logs Recovered . | . . . . . Drone Launches . | . . . . . Drone Recoveries . | . . . . . Exploration | -11 -10 -9 -8 -8 ------------- Run | Yrd Mat Mat Mat Gar Turns Passed 1071 | 158 405 250 72 186 Spaces Moved 1175 | 126 350 293 182 224 Core 93 | 5 35 45 . 8 Treads 14 | . . 14 . . Legs 214 | . 214 . . . Wheels 196 | 121 75 . . . Hover 302 | . . 226 76 . Flight 356 | . 26 8 106 216 Fastest Speed 20 | 50 37 37 20 20 Average Speed 65 | 78 98 60 38 32 Slowest Speed 200 | 80 120 200 56 50 Overloaded Moves 78 | . . . 53 25 Propulsion Burnouts . | . . . . . Robots Hopped 8 | . . . 5 3 Potential Cave-ins . | . . . . . Cave-ins Triggered . | . . . . . Exploration Rate (%) 33 | 10 54 45 30 28 Regions Visited 4 Branch Regions . Pre-discovered Areas 1 | . . . 1 . Known Exits Taken 1 | . . . 1 . Unknown Exits Taken 3 | 1 1 1 . . Scrap Searched . | . . . . . Spaces Dug . | . . . . . Terrain Destroyed 6 | . . . 6 . Melee . | . . . . . Projectile . | . . . . . AOE 6 | . . . 6 . Terrain Rammed . | . . . . . Walls Destroyed . | . . . . . Machines Disabled . | . . . . . Actions | -11 -10 -9 -8 -8 --------- Run | Yrd Mat Mat Mat Gar Total 1374 | 184 381 333 178 298 Wait 4 | . 2 . . 2 Move 1158 | 125 349 292 172 220 Hop 6 | . . . 5 1 Pick Up . | . . . . . Fast Attach . | . . . . . Attach . | . . . . . Detach . | . . . . . Swap . | . . . . . Drop . | . . . . . Fire 74 | . 26 17 1 30 Melee 7 | . . 1 . 6 Ram 5 | . . 1 . 4 Kick 4 | . 4 . . . Crush 3 | . . 3 . . Escape Stasis 35 | . . . . 35 Rewire . | . . . . . Trap 19 | . . 19 . . Miscellaneous 59 | 59 . . . . Route ------- -11/Scrapyard -10/Materials -9/Materials (discovered 2 exits: *Mat / *Min) -8/Materials -8/Garrison History --------- Turn | Location | Event 1 | -11/Scrapyard | Discovered new exit (range 3) 159 | -11/Scrapyard | Entered Materials 215 | -10/Materials | Discovered new exit (range 8) 525 | -10/Materials | Core integrity fell below 50% 538 | -10/Materials | Core integrity fell below 20% 564 | -10/Materials | Entered another Materials area 566 | -9/Materials | Lost 3 parts (1p2n) 596 | -9/Materials | Identified exit to Mines 778 | -9/Materials | Core integrity fell below 50% 807 | -9/Materials | Discovered new exit (range 13) 809 | -9/Materials | Lost 6 parts (1p2n1u2w) 814 | -9/Materials | Entered another Materials area 886 | -8/Materials | Identified exit to Garrison 886 | -8/Materials | Entered Garrison 894 | -8/Garrison | Triggered checkpoint 894 | -8/Garrison | Garrison Relay disabled 950 | -8/Garrison | Triggered checkpoint 961 | -8/Garrison | Triggered checkpoint 978 | -8/Garrison | Triggered checkpoint 1017 | -8/Garrison | Triggered checkpoint 1022 | -8/Garrison | Triggered checkpoint 1030 | -8/Garrison | Lost 6 parts (1p3n2w) 1044 | -8/Garrison | Core integrity fell below 50% 1054 | -8/Garrison | Triggered checkpoint 1068 | -8/Garrison | Core integrity fell below 20% 1072 | -8/Garrison | Destroyed by Y-45 Defender with Beam Rifle Last Messages --------------- 01030_ S-10 Pest destroyed. 01032_ Slammed into S-10 Pest. 01033_ Acquired 5 Protomatter. 01038_ Flight Unit destroyed. 01041_ S-10 Pest destroyed. 01044_ Slammed into Y-45 Defender. 01044_ Destabilizing: System interference. 01044_ Lgt. Assault Rifle temporarily disabled. 01045_ Slammed into Y-45 Defender. 01046_ Acquired 3 Protomatter. 01047_ Y-45 Defender destroyed. 01050_ Acquired 3 matter. 01051_ Lgt. Ion Engine destroyed. 01054_ Beams of light sweep through the air. An alarm sounds. 01061_ Flight Unit destroyed. 01064_ Critical hit (Burn: +37). 01070_ Released control of S-10 Pest. 01070_ Slammed into G-47 Trooper. 01071_ S-10 Pest reactivates. 01072_ Critical hit (Burn: +37). Map ----- +----------------------------------------------------+ | ?????????????????????????????????????????????????? | | ????????????????????????????????????#####????????? | | ????????????????????????????????????#!!!#????????? | | ????????????????????????????????????#! !#????????? | | ????????????????????????????????????#! !#????????? | | ?????????????????????+??????????????##+##????????? | | ?????????????????????????????????????#=###???????? | | ?????????????????????????????????????#[* #???????? | | ???????????????????????? ??????????#=%!#???????? | | ???????????????????????? #?????????# [ #???????? | | ???????????????????????? #?????????# ###???????? | | ???????????????????????# #?????????# #?????????? | | ???????????????????????# Y#?????????# #?????????? | | ???????????????????????# g #?????????# #?????????? | | ???????????????????????# #?????????# ###???????? | | ???????????????????????# ##????????# #???????? | | ???????????????????????# #????????# #???????? | | ???????????????????????# ?????????# #???????? | | ???????????????????????# #?????????#=###???????? | | ???????????????????????# #?????????#%#?????????? | | ???????????????????????# #?????????#=#?????????? | | ???????????????????????# #?????????#[#?????????? | | ?????????????????????### #?????????# ###???????? | | ?????????????????????# s #?????????# #???????? | | ?????????????????????# Y#?????????# #???????? | | ?????????????????????# g@ #?????????# ????????? | | ?????????????????????### #?????????# #?????????? | | ???????????????????????# #?????????# #?????????? | | ???????????????????????# #?????????# #?????????? | | ???????????????????????#=^s#?????????# #?????????? | | ??????????????????######[%=########### #######???? | | ??????????????????# =*%=*^ #??? | | ??????????????????# ####=[=########### ###### #??? | | ??????????????????# #??# #?????????# #?????????? | | ??????????????????# #??# #????????? ?????????? | | ???######?????????# #??# #????????? #????????? | | ???# #?????????# #??# #????????? ????????? | | #### =%[########### #### #????????? # #???????? | | =^ #?????????# ?#???????? | | ^ #??????????##?????????? | | ^ #?????????????????????? | | ## ## ###############?????????????????????? | | ## ## #???????????????????????????????????? | | "???????????????????????????????????? | | "???????????????????????????????????? | | "???????????????????????????????????? | | "???????????????????????????????????? | | ## ## #???????????????????????????????????? | | ## ## #???????????????????????????????????? | | #???????????????????????????????????? | +----------------------------------------------------+ Best States ------------- Heat Dissipation 55 Energy Generation 19 Energy Capacity 215 Matter Stores 100 Matter Capacity 100 Sight Range 16 Terrain Scan Range 16 Terrain Scan Density 10 Armor Coverage 150 Resistance: EX 50 Resistance: I 25 Evasion (%) 73 Recoil Reduction 2 Offensive Hacking 10 Item Schematics ----------------- None Robot Schematics ------------------ None Fabricated ------------ Nothing Repaired ---------- Nothing Studied --------- None Alien Tech Used ----------------- None Achievements -------------- None Challenges ------------ None Polymind | -11 -10 -9 -8 -8 ---------- Run | Yrd Mat Mat Mat Gar Hosts 10 | 1 2 3 2 2 Combat Hostiles 7 | . 2 1 2 2 Allies . | . . . . . Unique Host Classes 6 | 1 2 2 1 . Average Host Suspicion 73 | 1 88 81 70 93 Unsuspicious Activity 379 | 297 . 77 5 . Returns to Shadow . | . . . . . Fuzzy Dispatches . | . . . . . Protomatter Created 63 | . 18 28 . 17 Used 93 | 5 21 33 22 12 Decayed . | . . . . . Highest Spend 23 | 5 15 23 16 6 Top 5 Hosts by Kills: Y-45 Defender (-9/Materials: 6) C-17 Slicer (-8/Materials: 4) G-34 Mercenary (-10/Materials: 3) S-10 Pest (-8/Garrison: 2) S-10 Pest (-8/Garrison: 2) Game ------ Seed XenonUltimateRipper Manual? 0 Play Time 00:15:03 Cumulative 1225.9 hours Start 2025.11.21 @ 16:58:39 End 2025.11.21 @ 17:34:15 Sessions 1 Manual Loads 0 Difficulty Rogue Special Mode Winter2022/Polymind Game No. 1507 Rogue 1223 Adventurer 124 Explorer 160 Win Type - Total 57 Types 43/0/8/4/1/0/0/1/0/0 Lore% 93 Gallery% 86 Achievement% 65 Wizard Run 0 Options --------- Layout 0 ASCII 0 Keyboard 1 Movement Numpad Keybinds 0 Fullscreen 2 Font 18/X11 Map View 76x50 Zoom Use 1% Tactical HUD 1 Map Filters NONE Filters NONE Steam 1 RUN: b01958e8-4c3d-4924-b8b3-60eabe019996